[Event "13th London Chess Classic 2023"]
[Site "London"]
[Date "2023.12.09"]
[Round "8.4"]
[White "Moussard, Jules"]
[Black "Royal, Shreyas"]
[Result "0-1"]
[ECO "D02"]
[WhiteElo "2639"]
[BlackElo "2404"]
[Annotator "TA"]
[PlyCount "136"]
[EventDate "2023.11.27"]
[EventType "tourn"]
[EventCountry "ENG"]
[SourceTitle "playchess.com"]
[Source "ChessBase"]
[SourceQuality "1"]
[TimeControl "40/5400+30:1800+30"]

{[%evp 9,136,17,17,16,31,25,30,13,20,14,18,14,18,13,16,0,9,11,1,-9,-2,-22,-4,0,39,44,70,69,84,84,84,84,87,79,79,86,79,79,105,87,102,87,78,74,108,85,108,92,187,189,252,241,250,247,255,236,218,228,256,224,254,244,236,235,243,224,249,238,250,229,254,213,212,8,15,34,62,-114,-114,-191,-184,-304,-112,-118,-126,-105,-111,-604,-598,-606,-544,-590,-575,-568,-600,-578,-564,-722,-697,-689,-673,-897,-861,-877,-870,-864,-859,-881,-875,-879,-858,-866,-834,-1120,-1114,-1072,-1030,-1467,-1381,-29936,-6038,-4850,-3650,-29980,-10912,-29982,-29976,-8632,-7383]} 1. Nf3 {[%emt 0:03:01]} d5 {[%emt 0:00:09]} 2. g3 {[%emt 0:00:04]} Nd7 {[%emt 0:00:23]} 3. d4 {[%emt 0:02:07]} Nb6 {[%emt 0:00:06]} 4. Bg2 {[%emt 0:03:24]} Bf5 {[%emt 0:00:08]} 5. b3 {[%emt 0:09:23]} e6 {[%emt 0:01:07]} 6. O-O {[%emt 0:02:22] D02: 1 d4 d5 2 Nf3 sidelines, including 2...Nf6 3 g3 and 2...Nf6 3 Bf4.} h6 {[%emt 0:02:31] [#]} 7. c4 $1 {[%emt 0:01:54]} c6 {[%emt 0:00:50]} (7... Nf6 8. Bb2) 8. Nbd2 {[%emt 0:04:45] White has an edge.} Nf6 {[%emt 0:01:07]} 9. Bb2 {[%emt 0:00:08]} Be7 {[%emt 0:00:51]} 10. e3 {[%emt 0:03:29]} O-O {[%emt 0:05:16]} 11. Qe2 {[%emt 0:01:10]} a5 {[%emt 0:01:49][%cal Ba7a5,Ba5a4][%mdl 32]} 12. Ne5 {[%emt 0:03:35]} Nbd7 {[%emt 0:02:27] [#]} 13. Nd3 $146 {[%emt 0:04:20]} ({Predecessor:} 13. Nxd7 Qxd7 14. a3 b5 15. c5 Bg4 16. f3 Bh5 17. Rad1 Ne8 18. g4 Bg6 19. f4 {0-1 Krysa,L (2531)-Fedoseev,V (2678) Titled Tuesday intern op 25th Aug blitz 2020 (6)}) 13... a4 {[%emt 0:03:22]} 14. Rfc1 {[%emt 0:02:25]} Qb6 {[%emt 0:02:16]} 15. c5 {[%emt 0:02:13]} Qa6 {[%emt 0:06:17]} 16. Bf1 {[%emt 0:01:40]} b5 {[%emt 0:23:50]} 17. f3 {[%emt 0:03:07]} axb3 {[%emt 0:08:53]} 18. axb3 {[%emt 0:01:59]} Qb7 {[%emt 0:00:04]} 19. e4 {[%emt 0:01:00]} Bh7 {[%emt 0:01:08]} 20. e5 {[%emt 0:02:32]} Ne8 {[%emt 0:00:37]} 21. Rxa8 {[%emt 0:00:07]} Qxa8 {[%emt 0:00:06]} 22. Ra1 {[%emt 0:00:05]} Qb7 {[%emt 0:00:31]} 23. b4 {[%emt 0:01:59]} g5 {[%emt 0:02:39]} 24. Nb3 {[%emt 0:05:35]} Ng7 {[%emt 0:00:07]} 25. Na5 {[%emt 0:00:49]} Qc7 {[%emt 0:00:28]} 26. Nf2 {[%emt 0:04:23]} h5 {[%emt 0:03:19]} 27. Re1 {[%emt 0:04:11]} Re8 {[%emt 0:03:14]} 28. Qd2 {[%emt 0:08:02]} Nf8 {[%emt 0:06:52]} (28... Bf5 $16) 29. Nh3 $1 $18 {[%emt 0:01:24]} g4 {[%emt 0:03:39]} (29... f6 $142 30. exf6 Bxf6 31. Nxg5 Bf5) 30. fxg4 {[%emt 0:00:11]} hxg4 {[%emt 0:00:06]} 31. Nf2 {[%emt 0:00:08]} Bf5 {[%emt 0:00:27]} 32. Be2 {[%emt 0:01:45]} Nh7 {[%emt 0:00:06]} 33. Nxg4 {[%emt 0:02:59]} Bg6 {[%emt 0:01:21]} 34. Qf4 {[%emt 0:03:24]} Nf5 {[%emt 0:03:48]} 35. h4 {[%emt 0:02:56] Inhibits Bg5.} Kh8 {[%emt 0:00:23]} 36. Ne3 {[%emt 0:03:18]} Nxe3 {[%emt 0:03:45]} 37. Qxe3 {[%emt 0:00:03]} f5 {[%emt 0:01:29]} 38. Qf4 {[%emt 0:04:54]} Rg8 {[%emt 0:00:11]} 39. Kf2 {[%emt 0:01:09]} Be8 {[%emt 0:00:50]} 40. Ke3 {[%emt 0:00:00]} Bd8 {[%emt 0:00:00]} 41. Kd3 $2 {[%emt 0:13:39]} ({White should play} 41. Rh1 $18) 41... Nf6 $1 $11 {[%emt 0:06:23]} 42. Rg1 {[%emt 0:04:55]} (42. exf6 $2 {is the wrong capture.} Rxg3+ $19) (42. Bc3 {is interesting.} Ne4 43. Rg1 Qh7 44. Be1) 42... Ne4 $1 {[%emt 0:02:14]} 43. Kc2 $2 {[%emt 0:08:43]} ({Of course not} 43. Qh6+ Qh7 44. Qxh7+ (44. Qxe6 $2 {too greedy.} f4 $19) 44... Kxh7 $11) (43. Bc3 $1 $14 {stays ahead.}) 43... Qh7 $17 {[%emt 0:01:10][%cal Og8g3]} 44. Kb3 {[%emt 0:00:24]} (44. Bf3 $17 {was worth a try.}) 44... Bxh4 $1 $19 {[%emt 0:00:39] Hoping for ...Bg5.} 45. Bc3 {[%emt 0:00:30]} (45. Ka2 {might work better.} Bxg3 46. Qf1) 45... Nxg3 $2 {[%emt 0:01:25]} (45... Rxg3 $19 46. Rxg3 Bxg3) 46. Bf3 $17 {[%emt 0:00:43] [#]} Rg6 $1 {[%emt 0:04:37][%cal Og3e2]} (46... Ne4 $2 47. Rh1 Kg7 48. Rxh4 $18) 47. Rg2 {[%emt 0:01:13] [#] Prevents Ne2.} Qh6 $1 {[%emt 0:03:12]} 48. Bd2 {[%emt 0:02:56][%mdl 8192] Loses the game.} (48. Qxh6+ $17 Rxh6 49. Nb7) 48... Bg5 $19 {[%emt 0:00:21][%mdl 64] Skewer} 49. Qxg3 {[%emt 0:00:14]} Bxd2 {[%emt 0:00:05]} 50. Qh2 {[%emt 0:00:53] Qxh6+ would be deadly.} Rxg2 {[%emt 0:00:13]} 51. Qxh6+ {[%emt 0:00:06]} Bxh6 {[%emt 0:00:04]} 52. Bxg2 {[%emt 0:00:01][%mdl 4096] Endgame KBB-KBN} Bd2 {[%emt 0:00:17][%cal Bh6d2,Bd2b4,Bb4e1,Be1f2,Bf2g1][%mdl 32]} 53. Bf1 {[%emt 0:05:12]} Kg7 {[%emt 0:01:14]} 54. Nb7 {[%emt 0:01:17]} Kg6 {[%emt 0:00:36]} 55. Kc2 {[%emt 0:01:52]} Bxb4 {[%emt 0:00:07]} 56. Kd3 {[%emt 0:00:01]} Be1 {[%emt 0:00:39]} 57. Be2 {[%emt 0:00:03]} Bf2 {[%emt 0:00:24]} 58. Bd1 {[%emt 0:00:07]} Kg5 {[%emt 0:00:36]} 59. Be2 {[%emt 0:00:39]} Bg1 {[%emt 0:00:21]} 60. Bd1 {[%emt 0:00:06]} Kh4 {[%emt 0:00:08]} 61. Be2 {[%emt 0:00:36]} f4 {[%emt 0:00:12]} 62. Nd8 {[%emt 0:00:06]} Bd7 {[%emt 0:00:21]} 63. Nf7 {[%emt 0:00:16]} b4 {[%emt 0:00:05] aiming for ...Be8.} 64. Bd1 {[%emt 0:00:05]} Be8 {[%emt 0:00:06]} 65. Nd8 {[%emt 0:00:26]} Bg6+ {[%emt 0:00:31]} 66. Kd2 {[%emt 0:00:06]} Bxd4 {[%emt 0:00:07]} (66... Be3+ $142 67. Ke1 f3 68. Nxc6 b3 69. Ne7 Bd3 70. Ng6+ Kg3 71. Be2 fxe2 72. Ne7 Bf2+ 73. Kd2 e1=Q+ 74. Kxd3 Qe3#) 67. Nxe6 {[%emt 0:00:35]} Bc3+ {[%emt 0:00:08]} 68. Kc1 {[%emt 0:00:15]} Bxe5 {[%emt 0:00:06] Weighted Error Value: White=0.33/Black=0.15 (very precise)} 0-1

[Event "13th London Chess Classic 2023"]
[Site "London"]
[Date "2023.12.09"]
[Round "8.5"]
[White "Adams, Michael"]
[Black "McShane, Luke J"]
[Result "1/2-1/2"]
[ECO "C65"]
[WhiteElo "2670"]
[BlackElo "2626"]
[Annotator "TA"]
[PlyCount "62"]
[EventDate "2023.11.27"]
[EventType "tourn"]
[EventCountry "ENG"]
[SourceTitle "playchess.com"]
[Source "ChessBase"]
[SourceQuality "1"]
[TimeControl "40/5400+30:1800+30"]

{[%evp 9,62,1,19,16,16,18,20,22,48,45,32,23,48,47,90,93,105,48,49,58,57,26,34,40,25,12,30,15,11,8,7,0,0,-6,0,-11,-6,-12,-11,-11,-11,-11,-11,-15,-11,-11,-11,-11,-11,-11,-11,-11,-11,-13,-6]} 1. e4 {[%emt 1:31:00]} e5 {[%emt 0:00:04]} 2. Nf3 {[%emt 0:00:00]} Nc6 {[%emt 0:00:04]} 3. Bb5 {[%emt 0:00:00]} Nf6 {[%emt 0:00:05]} 4. d3 {[%emt 0:00:00]} Bc5 {[%emt 0:00:05]} 5. c3 {[%emt 0:00:00]} O-O {[%emt 0:00:51]} 6. O-O {[%emt 0:00:00] C65: Ruy Lopez: Berlin Defence (3...Nf6), unusual lines and 4 0-0 Bc5.} d5 {[%emt 0:04:53]} 7. exd5 {[%emt 0:00:00]} Qxd5 {[%emt 0:00:30][%cal Oc5f2]} 8. Bc4 {[%emt 0:00:00]} Qd6 {[%emt 0:00:19]} 9. b4 {[%emt 0:00:00]} Bb6 {[%emt 0:00:07]} 10. Nbd2 {[%emt 0:00:00]} Bg4 $5 {[%emt 0:04:08][%cal Oe5e4][%mdl 4] Exploring less charted territory.} 11. a4 {[%emt 0:00:00] [#] Hoping for a5.} a5 {[%emt 0:02:37]} 12. b5 {[%emt 0:00:00] [#]} Ne7 $146 {[%emt 0:00:18]} ({Predecessor:} 12... e4 13. Nxe4 Nxe4 14. dxe4 Bxf3 15. Qxd6 cxd6 16. gxf3 Ne5 17. Bd5 Rac8 18. f4 Nd3 19. Bxb7 Rxc3 {½-½ Muzychuk,A (2527)-Goryachkina,A (2596) FIDE World Cup (Women) 2021 (6.1)}) 13. Ba3 {[%emt 0:00:00]} (13. h3 $16 Bxf3 14. Qxf3) 13... Bc5 $14 {[%emt 0:01:40]} 14. Bxc5 {[%emt 0:00:00]} Qxc5 {[%emt 0:00:02]} 15. h3 {[%emt 0:00:00]} Bxf3 {[%emt 0:02:36]} 16. Qxf3 {[%emt 0:00:00]} Ned5 {[%emt 0:00:14]} 17. Rac1 {[%emt 0:00:00][%cal Od3d4]} Rfe8 {[%emt 0:02:39]} 18. Rfe1 {[%emt 0:00:00]} c6 {[%emt 0:02:06] The position is equal.} 19. bxc6 {[%emt 0:00:00]} bxc6 {[%emt 0:00:12]} 20. Ne4 {[%emt 0:00:00]} Nxe4 {[%emt 0:01:20]} 21. Qxe4 {[%emt 0:00:00]} g6 {[%emt 0:07:49]} 22. Bxd5 {[%emt 0:00:00]} cxd5 {[%emt 0:00:36]} 23. Qf3 {[%emt 0:00:00]} Rac8 {[%emt 0:10:42]} 24. Rb1 {[%emt 0:00:00]} Qc6 {[%emt 0:02:48]} 25. Rb5 {[%emt 0:00:00]} Qxc3 {[%emt 0:01:05]} 26. Reb1 {[%emt 0:00:00]} e4 {[%emt 0:16:27]} 27. dxe4 {[%emt 0:00:00]} Qxf3 {[%emt 0:00:24]} 28. gxf3 {[%emt 0:00:00]} dxe4 {[%emt 0:00:13]} 29. Re1 {[%emt 0:00:00]} exf3 {[%emt 0:25:40]} 30. Rxe8+ {[%emt 0:00:00]} Rxe8 {[%emt 0:00:04]} 31. Kh2 $1 {[%emt 0:00:00]} Re4 {[%emt 0:03:09] Weighted Error Value: White=0.07 (flawless) /Black=0.07 (flawless)} 1/2-1/2

[Event "13th London Chess Classic 2023"]
[Site "London"]
[Date "2023.12.10"]
[Round "9.1"]
[White "McShane, Luke J"]
[Black "Volokitin, Andrei"]
[Result "1/2-1/2"]
[ECO "B51"]
[WhiteElo "2626"]
[BlackElo "2660"]
[Annotator "TA"]
[PlyCount "48"]
[EventDate "2023.11.27"]
[EventType "tourn"]
[EventCountry "ENG"]
[SourceTitle "playchess.com"]
[Source "ChessBase"]
[SourceQuality "1"]
[TimeControl "40/5400+30:1800+30"]

{[%evp 9,48,22,10,18,19,0,0,0,0,0,14,0,2,0,16,0,0,0,0,0,0,0,0,0,0,0,0,0,0,0,0,0,0,0,0,0,0,0,0,0,0]} 1. e4 {[%emt 0:02:20]} c5 {[%emt 0:00:03]} 2. Nf3 {[%emt 0:00:10]} d6 {[%emt 0:00:04]} 3. Bb5+ {[%emt 0:00:08]} Nd7 {[%emt 0:00:06]} 4. O-O {[%emt 0:01:02]} a6 {[%emt 0:00:06]} 5. Bd3 {[%emt 0:00:46]} Ngf6 {[%emt 0:00:06] The position is equal.} 6. Re1 {[%emt 0:00:14] B51: Sicilian: Moscow Variation (3 Bb5+) without 3...Bd7.} e6 {[%emt 0:00:11]} 7. Bf1 {[%emt 0:00:53] is cutting edge theory.} b5 {[%emt 0:00:42][%cal Bb7b5,Bb5b4,Bb4c3][%mdl 32]} 8. a4 {[%emt 0:00:55]} Bb7 {[%emt 0:00:05][%cal Bc8b7,Bb7e4,Be4c6][%mdl 32]} 9. d4 {[%emt 0:00:45] aiming for d5.} Bxe4 {[%emt 0:00:12]} 10. dxc5 {[%emt 0:00:41]} dxc5 {[%emt 0:00:06]} 11. Nc3 {[%emt 0:00:29]} Bc6 {[%emt 0:01:11] [#]} 12. Ng5 $146 {[%emt 0:00:13][%cal Og5e6] And now Nxe6! would win.} (12. axb5 {simplifies} axb5 13. Bf4 Rxa1 14. Qxa1 Be7 15. Bxb5 Qb6 16. Qa4) ({Predecessor:} 12. axb5 axb5 13. Rxa8 Qxa8 14. Bxb5 Be7 15. Bxc6 Qxc6 16. Bg5 h6 17. Bh4 O-O 18. Nd2 {½-½ Suleymanli,A (2588)-Volokitin,A (2664) FIDE Grand Swiss 2023 (9)}) 12... b4 {[%emt 0:00:15]} 13. Nxf7 {[%emt 0:01:15]} Kxf7 {[%emt 0:00:09]} 14. Rxe6 $1 {[%emt 0:00:05][%cal Of1c4][%mdl 64] [#] Strongly threatening Bc4! Decoy} bxc3 {[%emt 0:01:27]} (14... Kxe6 15. Bc4+ Ke7 16. Qe2+ $16) 15. Bc4 {[%emt 0:00:16] White threatens Rxf6+ and mate.} Bd5 {[%emt 0:02:11]} 16. Bxd5 {[%emt 0:00:20]} Nxd5 {[%emt 0:00:03]} (16... Nb6 17. Re7+ (17. Rxb6+ Nxd5 18. Rb7+ Kg8 $17) 17... Kxe7 18. Qe2+) 17. Qxd5 $40 {[%emt 0:00:14][%mdl 128] Re3+ would kill now. Black needs to defend precisely.} Nb6 $1 {[%emt 0:00:09][%mdl 64] [#] Discovered Attack} 18. Re7+ $1 {[%emt 0:00:20][%mdl 64] Decoy} Kxe7 {[%emt 1:32:24]} 19. Bg5+ {[%emt 0:00:10]} Ke8 {[%emt 0:00:00]} 20. Re1+ {[%emt 0:00:16]} Be7 $1 {[%emt 0:00:00]} 21. Qc6+ {[%emt 0:00:08]} Kf7 $1 {[%emt 0:00:00]} (21... Nd7 $2 22. Bxe7 Qxe7 23. Qxa8+ Kf7 24. Rxe7+ (24. Qxh8 $2 Qxe1#) 24... Kxe7 25. Qxh8 $18) 22. Qe6+ $1 {[%emt 0:00:06]} (22. Bxe7 $2 Qd5 23. Qxb6 Rhe8 24. bxc3 Rxe7 $19) (22. Rxe7+ Qxe7 23. Qf3+ (23. Bxe7 $2 cxb2 24. Qf3+ Kxe7 $19) 23... Ke8 24. Bxe7 cxb2 $17) 22... Ke8 {[%emt 0:00:00]} 23. Qc6+ $1 {[%emt 0:00:06]} Kf7 $1 {[%emt 0:00:00]} (23... Nd7 $2 24. Bxe7 Qxe7 25. Qxa8+ Kf7 26. Rxe7+ (26. Qxh8 $2 Qxe1#) 26... Kxe7 27. Qxh8 $18) 24. Qe6+ $1 {[%emt 0:00:05]} (24. Bxe7 $2 {loses.} Qd5 25. Qxb6 Rhe8 26. bxc3 Rxe7 $19) ({But not} 24. Rxe7+ Qxe7 25. Qf3+ (25. Bxe7 $2 {perishes.} cxb2 26. Qf3+ Kxe7 $19) 25... Kg6 26. Bxe7 cxb2 27. Qg3+ (27. Bxc5 $2 b1=Q+) (27. Qc6+ $2 Kf7 $19) 27... Kf7 28. Qb3+ Kxe7 $17) 24... Ke8 {[%emt 0:00:00] A rather calm draw. A fantastic game!   Weighted Error Value: White=0.02 (flawless) /Black=0.01 (flawless)} 1/2-1/2

[Event "13th London Chess Classic 2023"]
[Site "London"]
[Date "2023.12.10"]
[Round "9.2"]
[White "Royal, Shreyas"]
[Black "Adams, Michael"]
[Result "1/2-1/2"]
[ECO "D35"]
[WhiteElo "2404"]
[BlackElo "2670"]
[Annotator "TA"]
[PlyCount "61"]
[EventDate "2023.11.27"]
[EventType "tourn"]
[EventCountry "ENG"]
[SourceTitle "playchess.com"]
[Source "ChessBase"]
[SourceQuality "1"]
[TimeControl "40/5400+30:1800+30"]

{[%evp 11,61,11,19,12,18,14,24,33,37,0,0,0,0,0,0,0,0,0,0,0,0,0,0,0,0,0,8,0,0,0,0,0,0,-4,0,0,0,0,0,0,0,0,0,0,0,0,0,0,10,5,8,8]} 1. d4 {[%emt 0:00:04]} Nf6 {[%emt 0:00:05]} 2. c4 {[%emt 0:00:05]} e6 {[%emt 0:00:04]} 3. Nf3 {[%emt 0:00:07]} d5 {[%emt 0:00:06]} 4. Nc3 {[%emt 0:00:04]} Nbd7 {[%emt 0:00:10]} 5. Bf4 {[%emt 0:00:06]} Bb4 {[%emt 0:00:22]} 6. cxd5 {[%emt 0:00:30]} exd5 {[%emt 0:01:27]} 7. Qb3 {[%emt 0:00:19] D35: Queen's Gambit Declined: Exchange Variation.} c5 {[%emt 0:05:51]} 8. dxc5 {[%emt 0:00:06]} Qa5 {[%emt 0:05:35]} 9. a3 {[%emt 0:04:22] White has an edge.} Bxc3+ {[%emt 0:02:39]} 10. Qxc3 {[%emt 0:08:35]} Qxc3+ {[%emt 0:00:07] The position is equal.} 11. bxc3 {[%emt 0:00:05][%cal Bb2c3,Bc3c4][%mdl 32]} Nxc5 {[%emt 0:00:36]} 12. e3 {[%emt 0:02:05] [#]} Bd7 $146 {[%emt 0:04:07]} ({Predecessor:} 12... Nfe4 13. c4 dxc4 14. Bxc4 Be6 15. Bb5+ Ke7 16. Nd4 Rac8 17. O-O Nc3 18. Rfc1 Nb3 19. Nxb3 Bxb3 20. Bf1 Rc6 21. e4 Rhc8 22. f3 a6 23. Kf2 Ba4 24. Bd2 {½-½ Kaufman,L (2400)-Seirawan,Y (2644) USA-ch Seattle 2002 (2)}) 13. c4 {[%emt 0:01:49]} Rc8 {[%emt 0:03:21]} 14. Nd4 {[%emt 0:03:01] Inhibits Nb3.} O-O {[%emt 0:04:12]} 15. Be5 {[%emt 0:12:28]} Nce4 {[%emt 0:09:09]} 16. Bxf6 {[%emt 0:04:21]} Nxf6 {[%emt 0:00:17]} 17. cxd5 {[%emt 0:00:05]} Nxd5 {[%emt 0:01:20]} 18. Bd3 {[%emt 0:00:06]} Ne7 {[%emt 0:06:16]} 19. Ke2 {[%emt 0:04:01]} Nc6 {[%emt 0:04:26]} 20. Nxc6 {[%emt 0:00:05]} Bxc6 {[%emt 0:01:02]} 21. f3 {[%emt 0:00:44]} Rfd8 {[%emt 0:01:08]} 22. Rhd1 {[%emt 0:00:52]} Kf8 {[%emt 0:02:02]} 23. e4 {[%emt 0:00:57]} ({Reject} 23. Bxh7 Rxd1 24. Rxd1 g6 $17) 23... Rc7 {[%emt 0:07:44]} 24. Rac1 {[%emt 0:01:36]} Rdc8 {[%emt 0:03:29] [#] Hoping for ...Ba4.} 25. Rc4 {[%emt 0:00:34] Against Ba4} Bb5 {[%emt 0:02:28]} 26. Rxc7 {[%emt 0:00:05]} Bxd3+ {[%emt 0:00:02]} 27. Kxd3 {[%emt 0:00:27]} Rxc7 {[%emt 0:00:06]} 28. Rb1 {[%emt 0:00:05]} b6 {[%emt 0:00:40]} 29. a4 {[%emt 0:02:51][%cal Ba3a4,Ba4a5][%mdl 32]} h5 {[%emt 0:01:22]} 30. Rb5 {[%emt 0:00:08]} g6 {[%emt 0:00:28]} 31. a5 {[%emt 0:00:06] Weighted Error Value: White=0.03 (flawless) /Black=0.02 (flawless)} 1/2-1/2

[Event "13th London Chess Classic 2023"]
[Site "London"]
[Date "2023.12.10"]
[Round "9.3"]
[White "Tabatabaei, M. Amin"]
[Black "Moussard, Jules"]
[Result "1/2-1/2"]
[ECO "B48"]
[WhiteElo "2694"]
[BlackElo "2639"]
[Annotator "TA"]
[PlyCount "128"]
[EventDate "2023.11.27"]
[EventType "tourn"]
[EventCountry "ENG"]
[SourceTitle "playchess.com"]
[Source "ChessBase"]
[SourceQuality "1"]
[TimeControl "40/5400+30:1800+30"]

{[%evp 14,128,28,36,30,28,24,19,24,22,53,45,48,53,67,51,71,60,75,63,108,118,183,204,182,141,137,0,173,81,86,79,79,71,74,12,11,15,15,12,31,26,25,25,32,6,13,14,14,0,0,0,0,0,0,0,0,0,0,2,10,10,10,0,0,0,0,0,0,0,0,0,9,9,11,12,29,31,72,0,0,0,0,0,0,0,0,0,0,0,0,0,0,0,0,0,0,0,0,0,0,0,0,0,0,0,0,0,0,0,0,0,0,0,0,0,0]} 1. e4 {[%emt 0:01:03]} c5 {[%emt 0:05:20]} 2. Nf3 {[%emt 0:00:11]} e6 {[%emt 0:00:08]} 3. d4 {[%emt 0:00:15]} cxd4 {[%emt 0:00:05]} 4. Nxd4 {[%emt 0:00:07]} Nc6 {[%emt 0:00:03]} 5. Nc3 {[%emt 0:00:08]} Qc7 {[%emt 0:00:06]} 6. Be3 {[%emt 0:00:08]} a6 {[%emt 0:00:06]} 7. Qd2 {[%emt 0:00:07]} Nf6 {[%emt 0:00:40]} 8. O-O-O {[%emt 0:00:11]} b5 {[%emt 0:02:32] 8...Be7 gains popularity. B48: Sicilian: Taimanov: 5 Nc3 Qc7 6 Be3 a6 without Be2.} 9. Nxc6 {[%emt 0:17:27]} Qxc6 {[%emt 0:01:02]} 10. f3 {[%emt 0:00:26]} Bb7 {[%emt 0:17:23]} 11. g4 {[%emt 0:00:47]} h6 {[%emt 0:06:06]} 12. Kb1 {[%emt 0:09:59] [#]} d5 $146 {[%emt 0:04:37]} ({Predecessor:} 12... d6 13. Rg1 Be7 14. h4 Nd7 15. Ne2 Ne5 16. Nd4 Qc7 17. g5 hxg5 18. hxg5 g6 {½-½ Grischuk,A (2719)-Sokolov,A (2585) FRA-chT Gp-A 2004 (6)}) 13. exd5 {[%emt 0:01:12]} Nxd5 {[%emt 0:03:40]} 14. Nxd5 {[%emt 0:00:06]} Qxd5 {[%emt 0:00:05]} 15. Bd3 {[%emt 0:00:35][%cal Oe3d4]} Be7 {[%emt 0:10:43]} 16. h4 {[%emt 0:25:21][%cal Oe3d4]} Qxf3 {[%emt 0:08:19]} 17. Rhf1 {[%emt 0:00:40]} Qc6 {[%emt 0:01:42]} (17... Qg2 $16 {is a better defense.}) 18. Bd4 $18 {[%emt 0:09:25][%mdl 1024] White has strong compensation.} Rg8 {[%emt 0:14:56]} 19. Bh7 {[%emt 0:10:25]} Rh8 {[%emt 0:00:05]} 20. Bd3 {[%emt 0:00:06]} Rg8 {[%emt 0:00:03]} 21. Qf2 {[%emt 0:07:58]} (21. Be5 $18) 21... O-O-O $16 {[%emt 0:00:34]} 22. Qxf7 {[%emt 0:00:05]} Bxh4 {[%emt 0:00:43]} 23. Bxg7 {[%emt 0:01:21] White is much more active.} Qd7 {[%emt 0:05:45] [#]} 24. Bxh6 {[%emt 0:00:42]} (24. Qh5 $1 $16 Qxg7 25. Qxh4) 24... Qxf7 $11 {[%emt 0:00:30]} 25. Rxf7 {[%emt 0:00:05]} Rxg4 {[%emt 0:01:31]} 26. Bf4 {[%emt 0:00:28]} Rd5 {[%emt 0:08:56] Dodges Be5} 27. b3 {[%emt 0:08:30]} Bg5 $1 {[%emt 0:02:43]} 28. Bh2 {[%emt 0:01:58] Black must now prevent Rc7+.} Bd8 {[%emt 0:01:39] Repels Rc7+} 29. Re1 {[%emt 0:00:33]} Rd7 {[%emt 0:00:20]} 30. Rf8 {[%emt 0:00:22]} Bd5 {[%emt 0:00:56]} 31. a4 {[%emt 0:01:17]} Bxb3 $1 {[%emt 0:01:10][%mdl 64] Deflection} 32. axb5 {[%emt 0:00:05] Threatens to win with Re5.} Rb4 {[%emt 0:03:06]} 33. Kb2 {[%emt 0:04:11] And now Kc3 would win.} (33. bxa6 $5 Bc4+ $8 34. Kc1 Bxd3 35. cxd3 $11) 33... Bd5+ {[%emt 0:00:38]} 34. Kc3 {[%emt 0:00:22]} a5 {[%emt 0:00:44]} 35. Ref1 {[%emt 0:00:33]} Kb7 {[%emt 0:00:31]} 36. R1f7 {[%emt 0:00:03]} Rxf7 {[%emt 0:00:06]} 37. Rxf7+ {[%emt 0:00:05]} Kc8 {[%emt 0:00:03]} 38. Rf4 {[%emt 0:01:40]} Rxf4 {[%emt 0:00:23]} 39. Bxf4 {[%emt 0:00:01][%mdl 4096] Endgame KBB-KBB} Bf6+ {[%emt 0:00:15]} 40. Kd2 {[%emt 0:00:00]} a4 {[%emt 0:00:00] aiming for ...a3.} 41. Bd6 {[%emt 0:00:26]} ({Not} 41. c4 $2 a3 42. Bb1 (42. cxd5 $2 {perishes.} a2 $19) 42... Bxc4 $19) 41... Kd7 {[%emt 0:07:10]} 42. Bc5 {[%emt 0:04:21]} Ba2 {[%emt 0:01:29]} ({Much less strong is} 42... Be7 43. Bxe7 Kxe7 44. c4 $16) 43. c4 {[%emt 0:01:25][%cal Bc2c4,Bc4c5,Bc5c6][%mdl 32]} Bb3 {[%emt 0:17:36]} 44. Ba3 {[%emt 0:01:12]} Bd4 {[%emt 0:00:07]} 45. c5 {[%emt 0:00:33]} Bd5 {[%emt 0:00:49] [#]} 46. Bc2 {[%emt 0:05:26]} ({White should try} 46. Be2 $1 $16) 46... Bc4 {[%emt 0:03:43] The position is equal.} 47. Bxa4 {[%emt 0:01:29]} Kc7 {[%emt 0:00:54]} 48. Bb4 {[%emt 0:00:50]} Kb7 {[%emt 0:00:07]} 49. c6+ {[%emt 0:01:54]} Ka7 {[%emt 0:01:26]} 50. Be7 {[%emt 0:02:37]} (50. c7 $5 Kb7 $8 51. Ba5 $11) 50... e5 {[%emt 0:00:47][%cal Be6e5,Be5e4][%mdl 32]} 51. Bf6 {[%emt 0:00:07]} Kb6 {[%emt 0:00:40]} 52. Bd8+ {[%emt 0:00:16]} Ka7 {[%emt 0:00:29]} 53. Bc7 {[%emt 0:02:51]} Bf1 {[%emt 0:00:08]} 54. Ba5 {[%emt 0:04:31]} Bc4 {[%emt 0:01:08]} 55. Ke1 {[%emt 0:01:25]} e4 {[%emt 0:00:43]} 56. c7 {[%emt 0:02:13]} Be6 {[%emt 0:00:27]} 57. Bb3 {[%emt 0:00:35][%mdl 64] Deflection, Promotion} Bd7 {[%emt 0:00:54]} 58. Bd5 {[%emt 0:00:22]} Bb6 {[%emt 0:00:06]} 59. Bxb6+ {[%emt 0:00:12]} Kxb6 {[%emt 0:00:04]} 60. Bxe4 {[%emt 0:00:08]} Kxc7 {[%emt 0:00:04]} 61. Bc6 {[%emt 0:00:07]} Bxc6 {[%emt 0:00:03] KB-KP} 62. b6+ {[%emt 0:00:04]} Kb8 {[%emt 0:00:03]} 63. Kf2 {[%emt 0:00:08]} Kb7 {[%emt 0:00:02]} 64. Ke3 {[%emt 0:00:04]} Kxb6 {[%emt 0:00:02] White really could win this.   Weighted Error Value: White=0.10 (very precise) /Black=0.05 (flawless)} 1/2-1/2